bitfinex/quotes_SOLUSD_20250821
["timestamp","ask_amount","ask_price","bid_price","bid_amount"]
[1755783989539,39.59559401,184.7,184.62,13.09999152]
[1755783989540,12.39999152,184.67,184.62,13.09999152]
[1755783989736,12.39999152,184.67,184.63,0.7]
[1755783989938,12.39999152,184.69,184.64,0.7]
[1755783990143,13.59559401,184.69,184.64,0.7]
[1755783990363,13.59559401,184.69,184.6,0.7]
[1755783990364,25.99558553,184.67,184.6,0.7]
[1755783990571,13.59559401,184.65,184.58,12.39999152]
[1755783990887,25.99558553,184.61,184.56,0.7]
[1755783991058,25.99558553,184.61,184.47,42.24225159]
[1755783991059,12.39999152,184.59,184.54,13.09999152]
[1755783991384,13.59559401,184.59,184.55,0.7]
[1755783991691,12.39999152,184.57,184.52,0.7]
[1755783991848,13.59559401,184.57,184.52,0.7]
[1755783992049,58.88559401,184.57,184.47,0.7]
[1755783992279,26.0,184.57,184.53,12.39999152]
[1755783992443,13.59559401,184.59,184.47,0.7]
[1755783992444,26.0,184.6,184.56,12.39999152]
[1755783992649,26.0,184.61,184.57,0.7]
[1755783992865,39.59559401,184.64,184.58,0.7]
[1755783993172,39.59559401,184.64,184.59,0.7]
[1755783993354,13.59559401,184.65,184.61,12.39999152]
[1755783993554,12.39999152,184.62,184.53,0.7]
[1755783993756,12.39999152,184.58,184.53,13.09999152]
[1755783993974,13.59559401,184.61,184.54,0.7]
[1755783994180,12.39999152,184.58,184.54,0.7]
[1755783994363,12.39999152,184.59,184.54,18.5188215]
[1755783994584,13.59559401,184.61,184.55,0.7]
[1755783994777,13.59559401,184.61,184.51,0.7]
[1755783994778,12.39999152,184.58,184.51,0.7]
[1755783994948,12.39999152,184.55,184.48,0.7]
[1755783995285,39.59559401,184.58,184.51,12.39999152]
[1755783995453,26.0,184.59,184.52,0.7]
[1755783995778,12.39999152,184.58,184.52,0.2]
[1755783995950,38.39999152,184.59,184.52,0.2]
[1755783996151,38.39999152,184.59,184.54,12.39999152]
[1755783996152,26.0,184.59,184.54,12.39999152]
[1755783996469,12.39999152,184.58,184.53,12.39999152]
[1755783996674,12.39999152,184.55,184.41,13.55607525]
[1755783996863,12.39999152,184.52,184.47,12.39999152]
[1755783997052,12.39999152,184.51,184.46,12.39999152]
[1755783997256,12.39999152,184.51,184.42,5.42240537]
[1755783997456,12.39999152,184.49,184.36,5.4241701]
[1755783997670,25.99558553,184.48,184.41,0.7]
[1755783997873,13.59559401,184.48,184.38,0.7]
[1755783998051,13.59559401,184.48,184.43,12.39999152]
[1755783998257,12.39999152,184.45,184.36,31.4241701]
[1755783998470,12.39999152,184.45,184.4,12.39999152]
[1755783998860,26.0,184.5,184.41,0.7]
[1755783998861,39.59559401,184.49,184.41,0.7]
[1755783999052,12.39999152,184.46,184.41,0.7]
[1755783999253,39.59559401,184.49,184.41,0.7]
[1755783999588,0.67,184.54,184.47,12.39999152]
[1755783999785,0.67,184.54,184.49,12.39999152]
[1755783999786,25.99558553,184.54,184.49,12.39999152]
[1755784000078,45.34,184.58,184.52,12.39999152]
[1755784000279,45.34,184.58,184.43,13.59559401]
[1755784000280,45.34,184.58,184.44,26.0]
[1755784000459,12.39999152,184.58,184.49,5.42034798]
[1755784000786,12.39999152,184.52,184.44,5.42164938]
[1755784000996,13.59559401,184.56,184.43,0.7]
[1755784000997,26.0,184.54,184.46,12.39999152]
[1755784001290,13.59559401,184.57,184.51,12.39999152]
[1755784001497,57.81999152,184.58,184.53,12.39999152]
[1755784001660,12.39999152,184.6,184.55,12.39999152]
[1755784001857,12.39999152,184.6,184.5,26.7]
[1755784002058,26.0,184.61,184.56,12.39999152]
[1755784002259,12.39999152,184.65,184.6,12.39999152]
[1755784002478,0.67,184.7,184.62,12.39999152]
[1755784002791,0.67,184.76,184.66,12.39999152]
[1755784002989,0.06,184.79,184.67,0.7]
[1755784002990,0.73,184.79,184.67,0.7]
[1755784003158,12.39999152,184.78,184.73,12.39999152]
[1755784003358,12.39999152,184.78,184.67,0.7]
[1755784003668,0.67,184.77,184.7,12.39999152]
[1755784003857,0.06,184.79,184.7,12.39999152]
[1755784004061,0.06,184.79,184.72,12.39999152]
[1755784004062,12.39999152,184.77,184.72,12.39999152]
[1755784004286,25.99558553,184.75,184.7,12.39999152]
[1755784004477,13.59559401,184.73,184.69,12.39999152]
[1755784004790,13.59559401,184.73,184.66,12.39999152]
[1755784004791,12.39999152,184.71,184.66,12.39999152]
[1755784004960,0.06,184.75,184.67,0.7]
[1755784005284,25.99558553,184.74,184.69,12.39999152]
[1755784005584,0.06,184.75,184.73,12.39999152]
[1755784005788,0.06,184.75,184.74,12.39999152]
[1755784006302,0.06,184.75,184.74,13.09999152]
[1755784006490,0.06,184.77,184.76,26.0]
[1755784006792,0.06,184.79,184.76,26.0]
[1755784006793,0.06,184.79,184.76,38.39999152]
[1755784006999,0.06,184.79,184.78,12.39999152]
[1755784007377,0.06,184.79,184.78,13.09999152]
[1755784007687,0.06,184.79,184.76,12.39999152]
[1755784008278,2.80685962,184.9,184.78,12.39999152]
[1755784008591,12.39999152,184.92,184.8,26.0]
[1755784008764,0.7,184.93,184.87,12.39999152]
[1755784008765,26.7,184.93,184.87,12.39999152]
[1755784008965,13.09999152,184.93,184.83,0.7]
[1755784009164,12.39999152,184.89,184.79,0.7]
[1755784009387,13.59559401,184.87,184.83,12.39999152]
[1755784009688,25.99558553,184.85,184.78,26.0]
[1755784010187,12.39999152,184.88,184.83,12.39999152]
[1755784010400,13.09999152,184.88,184.79,0.7]
[1755784010564,26.0,184.89,184.83,12.39999152]
[1755784010769,13.59559401,184.88,184.83,12.39999152]
[1755784010981,0.7,184.91,184.86,12.39999152]
[1755784011169,13.59559401,184.93,184.86,12.39999152]
[1755784011370,13.59559401,184.9,184.86,12.39999152]
[1755784011673,26.0,184.91,184.83,12.39999152]
[1755784011860,13.59559401,184.86,184.77,26.0]
[1755784012060,25.99558553,184.84,184.77,26.7]
[1755784012292,12.39999152,184.84,184.79,12.39999152]
[1755784012474,13.59559401,184.82,184.78,12.39999152]
[1755784012662,25.99558553,184.8,184.72,0.7]
[1755784012866,13.59559401,184.78,184.74,12.39999152]
[1755784013164,12.39999152,184.77,184.7,0.7]
[1755784013374,13.59559401,184.82,184.7,0.7]
[1755784013375,13.59559401,184.81,184.73,12.39999152]
[1755784013689,13.59559401,184.78,184.74,12.39999152]
[1755784013893,0.7,184.85,184.76,12.39999152]
[1755784014101,13.59559401,184.82,184.71,0.7]
[1755784014307,12.39999152,184.79,184.71,0.7]
[1755784014606,25.99558553,184.78,184.73,12.39999152]
[1755784014889,25.99558553,184.76,184.71,12.39999152]
[1755784015206,13.59559401,184.74,184.7,12.39999152]
[1755784015368,25.99558553,184.74,184.69,12.39999152]
[1755784015566,25.99558553,184.74,184.67,0.7]
[1755784015895,25.99558553,184.74,184.69,12.39999152]
[1755784016371,13.59559401,184.74,184.7,12.39999152]
[1755784016775,13.59559401,184.77,184.73,12.39999152]
[1755784016995,26.0,184.79,184.75,12.39999152]
[1755784017198,25.99558553,184.78,184.7,0.7]
[1755784017372,12.39999152,184.77,184.72,12.39999152]
[1755784017572,0.7,184.77,184.72,12.39999152]
[1755784017905,12.39999152,184.76,184.68,0.7]
[1755784018073,25.99558553,184.75,184.7,0.03]
[1755784018275,0.7,184.74,184.7,0.03]
[1755784018466,25.99558553,184.71,184.7,0.03]
[1755784019012,26.69558553,184.71,184.7,0.03]
[1755784019186,13.59559401,184.71,184.7,0.03]
[1755784020489,26.69558553,184.71,184.7,0.03]
[1755784020690,14.29559401,184.71,184.7,0.03]
[1755784020895,13.59559401,184.71,184.7,0.03]
[1755784021092,26.69558553,184.71,184.7,0.03]
[1755784021481,32.10947757,184.71,184.7,0.03]
[1755784021683,13.59559401,184.71,184.7,0.03]
[1755784021900,25.99558553,184.71,184.7,0.03]
[1755784022301,26.69558553,184.71,184.7,0.03]
[1755784022678,13.59559401,184.71,184.7,0.03]
[1755784022878,26.69558553,184.71,184.7,0.03]
[1755784023385,32.10947757,184.71,184.7,0.03]
[1755784024092,19.70948605,184.71,184.7,0.03]
[1755784024407,26.69558553,184.71,184.7,0.03]
[1755784024778,51.99558553,184.71,184.7,0.03]
[1755784024979,13.59559401,184.71,184.7,0.03]
[1755784025197,2.82619724,184.77,184.7,13.12999152]
[1755784025407,12.39999152,184.8,184.75,12.39999152]
[1755784025616,5.47043567,184.83,184.7,0.03]
[1755784025617,12.39999152,184.81,184.76,13.09999152]
[1755784025798,12.39999152,184.8,184.75,12.39999152]
[1755784025982,12.39999152,184.79,184.74,12.39999152]
[1755784026181,26.0,184.8,184.7,0.03]
[1755784026382,13.59559401,184.79,184.74,0.7]
[1755784026615,13.59559401,184.8,184.75,12.39999152]
[1755784026824,26.0,184.79,184.74,12.39999152]
[1755784027110,26.0,184.79,184.71,0.7]
[1755784027295,13.59559401,184.74,184.7,0.03]
[1755784027614,0.76,184.83,184.73,12.39999152]
[1755784027786,13.59559401,184.8,184.77,12.39999152]
[1755784027985,0.06,184.83,184.78,0.7]
[1755784028184,12.39999152,184.82,184.7,31.44400983]
[1755784028408,13.65559401,184.83,184.8,12.39999152]
[1755784028613,0.06,184.83,184.8,12.39999152]
[1755784028809,13.65559401,184.83,184.78,12.39999152]
[1755784029014,13.59559401,184.81,184.76,0.7]
[1755784029241,13.59559401,184.81,184.71,26.0]
[1755784029242,12.39999152,184.8,184.71,26.0]
[1755784029418,13.59559401,184.79,184.74,12.39999152]
[1755784029623,13.59559401,184.82,184.75,0.7]
[1755784029825,13.59559401,184.79,184.75,0.7]
[1755784030039,13.59559401,184.79,184.72,13.09999152]
[1755784030040,12.39999152,184.77,184.72,13.09999152]
[1755784030244,39.59559401,184.8,184.72,13.09999152]
[1755784030404,12.39999152,184.75,184.7,0.03]
[1755784030607,26.0,184.77,184.72,12.39999152]
[1755784030848,13.59559401,184.78,184.73,0.7]
[1755784031149,13.59559401,184.78,184.7,0.03]
[1755784031150,12.39999152,184.76,184.71,12.39999152]
[1755784031303,12.39999152,184.76,184.7,0.03]
[1755784031304,12.39999152,184.72,184.7,0.03]
[1755784031507,13.59559401,184.74,184.7,0.03]
[1755784031508,25.99558553,184.71,184.7,0.03]
[1755784031814,13.59559401,184.76,184.71,0.7]
[1755784032016,13.59559401,184.76,184.7,12.42999152]
[1755784032017,12.39999152,184.75,184.7,0.03]
[1755784032246,25.99558553,184.76,184.71,12.39999152]
[1755784032543,12.39999152,184.75,184.7,0.03]
[1755784032743,12.39999152,184.75,184.7,12.42999152]
[1755784033155,12.39999152,184.72,184.7,0.03]
[1755784033441,0.7,184.77,184.7,0.03]
[1755784033654,25.99558553,184.74,184.7,0.73]
[1755784033947,25.99558553,184.74,184.7,0.03]
[1755784034145,12.39999152,184.74,184.7,0.73]
[1755784034695,12.39999152,184.72,184.7,0.03]
[1755784034828,12.39999152,184.71,184.7,0.03]
[1755784035136,12.39999152,184.77,184.71,0.7]
[1755784035345,39.59559401,184.78,184.71,0.7]
[1755784035503,39.59559401,184.78,184.73,12.39999152]
[1755784035706,45.98,184.8,184.76,12.39999152]
[1755784036013,12.45999152,184.83,184.77,13.09999152]
[1755784036222,12.39999152,184.82,184.77,13.09999152]
[1755784036431,0.06,184.83,184.81,12.39999152]
[1755784036615,0.06,184.83,184.78,0.7]
[1755784036616,0.06,184.83,184.82,12.39999152]
[1755784036809,0.06,184.83,184.82,13.06999152]
[1755784037035,12.59999152,184.94,184.82,18.48066136]
[1755784037226,0.2,184.94,184.92,12.39999152]
[1755784037426,0.2,184.94,184.93,12.39999152]
[1755784037642,0.2,184.94,184.93,13.06999152]
[1755784037826,0.2,184.94,184.9,0.67]
[1755784038031,0.2,184.94,184.92,12.39999152]
[1755784038213,0.2,184.94,184.9,12.39999152]
[1755784038410,0.2,184.94,184.93,12.39999152]
[1755784038836,0.2,184.94,184.86,38.39999152]
[1755784039044,0.2,184.94,184.93,12.39999152]
[1755784039630,0.2,184.94,184.91,13.06999152]
[1755784039916,0.2,184.94,184.87,0.67]
[1755784040122,0.2,184.94,184.89,12.39999152]
[1755784040326,12.59999152,184.94,184.89,12.39999152]
[1755784040538,13.59559401,184.93,184.88,12.39999152]
[1755784040829,25.99558553,184.93,184.88,12.39999152]
[1755784041049,0.2,184.94,184.9,12.39999152]
[1755784041219,0.2,184.94,184.89,0.67]
[1755784041549,0.2,184.94,184.91,12.39999152]
[1755784042047,0.2,184.94,184.84,26.0]
[1755784042228,0.2,184.94,184.85,0.67]
[1755784042430,12.59999152,184.94,184.89,12.39999152]
[1755784042634,0.2,184.94,184.89,12.39999152]
[1755784042835,0.2,184.94,184.92,12.39999152]
[1755784043152,0.2,184.94,184.93,12.39999152]
[1755784043745,0.2,184.94,184.87,0.67]
[1755784043966,0.2,184.94,184.89,0.67]
[1755784044139,12.59999152,184.94,184.86,26.67]
[1755784044524,13.59559401,184.93,184.89,12.39999152]
[1755784044727,12.39999152,184.91,184.86,0.67]
[1755784045221,13.59559401,184.92,184.87,13.06999152]
[1755784045421,13.59559401,184.92,184.88,13.06999152]
[1755784045720,13.59559401,184.92,184.82,26.0]
[1755784045721,12.39999152,184.89,184.82,0.67]
[1755784045920,12.39999152,184.88,184.82,0.67]
[1755784046120,13.59559401,184.92,184.84,12.39999152]
[1755784046353,12.39999152,184.9,184.85,12.39999152]
[1755784046656,13.59559401,184.92,184.88,12.39999152]
[1755784046953,13.59559401,184.92,184.88,13.06999152]
[1755784047134,13.59559401,184.92,184.89,0.67]
[1755784047354,0.2,184.94,184.91,12.39999152]
[1755784047539,0.2,184.98,184.93,12.39999152]
[1755784047741,0.2,184.98,184.97,12.39999152]
[1755784048281,2.80925494,185.06,184.97,13.06999152]
[1755784048458,3.59897572,185.07,185.02,12.39999152]
[1755784048774,12.39999152,185.04,184.99,12.39999152]
[1755784048955,12.39999152,185.06,185.01,12.39999152]
[1755784049154,13.08999152,185.07,185.01,12.39999152]
[1755784049471,13.59559401,185.05,184.96,12.399991]
[1755784049772,25.99558553,185.05,185.0,12.39999152]
[1755784050281,25.99558553,185.05,184.99,0.67]
[1755784050484,25.99558553,185.05,184.96,13.069991]
[1755784050636,13.59559401,185.05,184.97,0.67]
[1755784050840,25.99558553,185.05,184.97,0.67]
[1755784051067,25.99558553,185.03,184.96,12.399991]
[1755784051278,25.99558553,185.02,184.93,0.67]
[1755784051570,25.99558553,185.03,184.98,12.39999152]
[1755784051774,13.59559401,185.03,184.99,12.39999152]
[1755784052079,26.68558553,185.03,184.94,16.925317]
[1755784052260,14.28559401,185.03,184.94,16.925317]
[1755784052594,0.69,185.07,184.99,12.39999152]
[1755784052748,13.59559401,185.06,185.01,12.39999152]
[1755784053173,12.39999152,185.07,184.97,26.0]
[1755784053342,13.59559401,185.04,184.97,26.0]
[1755784053554,12.39999152,185.06,184.98,0.67]
[1755784053749,12.39999152,185.07,185.02,12.39999152]
[1755784053944,25.99558553,185.05,184.98,0.67]
[1755784054280,13.59559401,185.02,184.97,12.39999152]
[1755784054444,25.99558553,185.02,184.94,26.67]
[1755784054649,26.0,185.05,185.0,12.39999152]
[1755784054949,13.59559401,185.04,185.0,12.39999152]
[1755784055153,13.08999152,185.03,184.94,26.67]
[1755784055356,25.99558553,185.02,184.97,12.39999152]
[1755784055563,13.65559401,185.08,185.01,12.39999152]
[1755784055754,39.65559401,185.08,185.04,12.39999152]
[1755784055958,0.06,185.08,185.05,12.39999152]
[1755784056179,0.06,185.08,185.06,12.39999152]
[1755784056385,0.06,185.08,185.07,12.39999152]
[1755784056556,0.06,185.1,185.09,12.39999152]
[1755784057048,0.06,185.1,185.09,13.06999152]
[1755784057955,0.06,185.12,185.11,26.0]
[1755784058262,0.2,185.13,185.12,24.79998304]
[1755784058478,0.2,185.13,185.12,71.44998304]
[1755784058663,0.2,185.13,185.12,25.46998304]
[1755784058875,0.2,185.13,185.12,71.42998304]
[1755784059580,0.2,185.13,185.11,2.164913]
[1755784059888,0.2,185.13,185.12,12.39999152]
[1755784060253,0.2,185.13,185.11,2.164913]
[1755784060456,0.2,185.13,185.12,13.06999152]
[1755784060681,0.2,185.13,185.11,2.164913]
[1755784060842,0.2,185.13,185.12,12.39999152]
[1755784061046,0.2,185.13,185.09,12.39999152]
[1755784061359,0.69,185.12,185.07,13.595594]
[1755784061747,0.69,185.12,185.08,12.39999152]
[1755784061948,0.2,185.13,185.06,13.595594]
[1755784062178,0.2,185.13,185.09,26.0]
[1755784062391,0.2,185.13,185.12,12.39999152]
[1755784062777,0.2,185.13,185.12,13.06999152]
[1755784063467,0.2,185.13,185.12,39.06999152]
[1755784063808,0.69,185.28,185.15,26.0]
[1755784064101,12.39999152,185.27,185.13,0.67]
[1755784064301,13.08999152,185.25,185.17,26.0]
[1755784064460,13.08999152,185.25,185.2,12.39999152]
[1755784064461,0.69,185.25,185.2,12.39999152]
[1755784064667,0.69,185.24,185.17,26.0]
[1755784064901,0.69,185.24,185.2,12.39999152]
[1755784065192,0.69,185.24,185.21,12.39999152]
[1755784065396,2.80787094,185.29,185.23,12.39999152]
[1755784065574,0.06,185.37,185.28,12.39999152]
[1755784065575,0.69,185.31,185.28,12.39999152]
[1755784065782,0.69,185.31,185.29,12.39999152]
[1755784066104,0.69,185.33,185.3,12.39999152]
[1755784066309,2.80766132,185.35,185.23,26.67]
[1755784066597,0.69,185.32,185.25,26.0]
[1755784066965,0.69,185.32,185.23,0.67]
[1755784067194,13.59559401,185.31,185.26,12.39999152]
[1755784067388,13.59559401,185.31,185.24,26.0]
[1755784067603,2.80766132,185.35,185.3,12.39999152]
[1755784067805,0.71,185.37,185.34,12.39999152]
[1755784067967,0.71,185.37,185.35,12.39999152]
[1755784068395,0.71,185.37,185.29,0.7]
[1755784068396,0.06,185.37,185.36,12.39999152]
[1755784068767,0.06,185.37,185.31,26.7]
[1755784068991,0.06,185.37,185.35,12.39999152]
[1755784069195,0.06,185.37,185.31,26.0]
[1755784069395,0.06,185.37,185.34,12.39999152]
[1755784069578,0.06,185.37,185.35,12.39999152]
[1755784069782,0.71,185.37,185.31,26.0]
[1755784070092,0.06,185.37,185.35,12.39999152]
[1755784070294,0.06,185.37,185.36,12.39999152]
[1755784070475,0.06,185.37,185.32,26.7]
[1755784070669,0.06,185.37,185.36,12.39999152]
[1755784071469,0.06,185.37,185.33,0.7]
[1755784071677,0.06,185.37,185.32,26.0]
[1755784071678,0.06,185.37,185.35,12.39999152]
[1755784072197,0.06,185.37,185.32,42.222793]
[1755784072198,0.06,185.37,185.32,42.922793]
[1755784072368,0.06,185.37,185.36,12.39999152]
[1755784072565,0.06,185.37,185.35,12.39999152]
[1755784072770,0.71,185.37,185.34,12.39999152]
[1755784072985,0.71,185.37,185.29,72.58]
[1755784073170,0.71,185.37,185.36,12.39999152]
[1755784073171,0.06,185.37,185.36,12.39999152]
[1755784073377,0.06,185.37,185.31,42.223671]
[1755784073787,0.65,185.36,185.28,26.0]
[1755784073991,0.65,185.36,185.32,12.39999152]
[1755784074401,0.06,185.37,185.35,12.39999152]
[1755784074606,0.06,185.37,185.36,12.39999152]
[1755784075995,0.06,185.37,185.3,0.7]
[1755784076197,0.06,185.37,185.36,12.39999152]
[1755784076398,0.71,185.37,185.29,14.245594]
[1755784076593,26.70558553,185.37,185.29,14.245594]
[1755784076774,14.24559401,185.36,185.24,0.7]
[1755784076974,12.39999152,185.32,185.25,16.228058]
[1755784077176,12.39999152,185.33,185.28,12.39999152]
[1755784077405,0.65,185.32,185.28,12.39999152]
[1755784078102,12.39999152,185.35,185.3,12.39999152]
[1755784078403,0.65,185.35,185.31,12.39999152]
[1755784078710,12.39999152,185.33,185.24,16.928937]
[1755784078912,13.59559401,185.31,185.27,12.39999152]
[1755784079088,13.59559401,185.31,185.21,45.8]
[1755784079089,0.65,185.3,185.26,12.39999152]
[1755784079274,13.04999152,185.3,185.25,12.39999152]
[1755784079470,26.0,185.31,185.26,12.39999152]
[1755784079670,13.59559401,185.31,185.27,12.39999152]
[1755784080085,13.59559401,185.31,185.21,14.245594]
[1755784080086,0.65,185.3,185.21,14.945594]
[1755784080296,13.59559401,185.23,185.14,0.7]
[1755784080501,13.59559401,185.26,185.14,16.936842]
[1755784080681,13.59559401,185.26,185.15,0.7]
[1755784080877,26.65,185.27,185.17,26.0]
[1755784081077,26.65,185.27,185.25,12.39999152]
[1755784081078,26.0,185.27,185.25,12.39999152]
[1755784081403,26.0,185.27,185.17,26.0]
[1755784081404,0.65,185.33,185.26,12.39999152]
[1755784081578,25.99558553,185.32,185.27,12.39999152]
[1755784081779,25.99558553,185.32,185.21,45.78]
[1755784081780,26.0,185.3,185.19,45.82]
[1755784081980,13.04999152,185.31,185.27,12.39999152]
[1755784081981,0.65,185.31,185.27,12.39999152]
[1755784082183,0.06,185.38,185.28,12.39999152]
[1755784082383,0.06,185.38,185.21,26.0]
[1755784082384,25.99558553,185.36,185.31,12.39999152]
[1755784082583,0.06,185.37,185.25,12.39999152]
[1755784082879,26.0,185.34,185.32,12.39999152]
[1755784083103,13.04999152,185.33,185.23,0.7]
[1755784083300,13.59559401,185.3,185.24,12.39999152]
[1755784083491,0.65,185.29,185.23,12.39999152]
[1755784083691,26.0,185.29,185.26,12.39999152]
[1755784083894,39.04999152,185.29,185.2,26.0]
[1755784084107,39.04999152,185.29,185.24,12.39999152]
[1755784084296,26.0,185.29,185.25,12.39999152]
[1755784084605,26.0,185.29,185.23,12.39999152]
[1755784084813,0.65,185.33,185.26,12.39999152]
[1755784085001,13.59559401,185.32,185.28,12.39999152]
[1755784085203,12.39999152,185.33,185.24,0.7]
[1755784085394,25.99558553,185.32,185.27,12.39999152]
[1755784085593,26.64558553,185.32,185.27,12.39999152]
[1755784085793,0.65,185.32,185.24,0.7]
[1755784085997,25.99558553,185.31,185.22,26.7]
[1755784086201,12.39999152,185.28,185.23,12.39999152]
[1755784086408,12.39999152,185.24,185.16,0.7]
[1755784086715,13.59559401,185.28,185.23,12.39999152]
[1755784086716,13.59559401,185.27,185.23,12.39999152]
[1755784086898,0.65,185.31,185.25,12.39999152]
[1755784086899,39.59559401,185.3,185.25,12.39999152]
[1755784087213,52.64558553,185.3,185.22,0.7]
[1755784087417,39.59559401,185.3,185.26,12.39999152]
[1755784087713,26.0,185.31,185.29,12.39999152]
[1755784087909,0.65,185.34,185.29,12.39999152]
[1755784088218,13.59559401,185.32,185.26,0.7]
[1755784088398,13.59559401,185.32,185.29,12.39999152]
[1755784088989,13.59559401,185.32,185.26,0.7]
[1755784089184,0.65,185.34,185.29,12.39999152]
[1755784089412,0.65,185.34,185.31,12.39999152]
[1755784089413,13.59559401,185.34,185.31,12.39999152]
[1755784089718,0.71,185.37,185.33,12.39999152]
[1755784090021,12.39999152,185.34,185.26,0.7]
[1755784090219,12.39999152,185.33,185.28,12.39999152]
[1755784090398,26.0,185.34,185.28,12.39999152]
[1755784090592,26.0,185.34,185.3,12.39999152]
[1755784090921,39.59559401,185.35,185.31,12.39999152]
[1755784091091,13.65559401,185.37,185.33,12.39999152]
[1755784091285,0.06,185.37,185.34,12.39999152]
[1755784091504,0.06,185.37,185.33,12.39999152]
[1755784091797,0.06,185.34,185.31,0.7]
[1755784091989,0.06,185.34,185.33,12.39999152]
[1755784092729,13.10999152,185.34,185.29,12.39999152]
[1755784092924,13.10999152,185.34,185.28,12.39999152]
[1755784092925,25.99558553,185.33,185.28,12.39999152]
[1755784093090,13.04999152,185.32,185.25,0.7]
[1755784093288,13.04999152,185.32,185.19,13.59559401]
[1755784093289,25.99558553,185.29,185.23,13.109991]
[1755784093507,25.99558553,185.29,185.24,12.39999152]
[1755784093690,13.59559401,185.32,185.28,12.39999152]
[1755784094009,0.65,185.31,185.23,26.0]
[1755784094531,25.99558553,185.32,185.27,12.39999152]
[1755784094727,0.06,185.34,185.31,12.39999152]
[1755784094906,0.06,185.34,185.28,0.7]
[1755784095095,0.06,185.34,185.32,12.39999152]
[1755784095521,0.06,185.34,185.33,12.39999152]
[1755784095824,0.06,185.34,185.32,12.39999152]
[1755784096056,0.06,185.34,185.31,12.39999152]
[1755784096315,0.06,185.34,185.27,0.7]
[1755784096520,12.39999152,185.33,185.27,0.7]
[1755784096715,12.39999152,185.33,185.28,12.39999152]
[1755784096929,26.05558553,185.34,185.26,0.72]
[1755784097104,25.99558553,185.31,185.23,26.0]
[1755784097318,13.59559401,185.31,185.24,0.72]
[1755784097516,13.59559401,185.33,185.29,12.39999152]
[1755784098236,0.06,185.34,185.29,0.72]
[1755784098439,13.05999152,185.33,185.25,0.72]
[1755784098642,25.99558553,185.3,185.23,26.0]
[1755784098836,12.39999152,185.3,185.23,26.0]
[1755784099009,12.39999152,185.31,185.26,12.39999152]
[1755784099208,16.00165765,185.31,185.26,12.39999152]
[1755784099422,13.05999152,185.31,185.24,0.72]
[1755784099628,13.05999152,185.31,185.26,12.39999152]
[1755784099853,13.05999152,185.31,185.24,0.72]
[1755784100140,7.61548651,185.3,185.27,12.39999152]
[1755784100313,4.32774159,185.34,185.28,12.39999152]
[1755784100515,12.39999152,185.32,185.27,12.39999152]
[1755784100746,4.00796671,185.31,185.27,12.39999152]
[1755784100952,7.6157083,185.31,185.28,12.39999152]
[1755784101250,0.06,185.34,185.3,12.39999152]
[1755784101251,3.60774159,185.32,185.3,12.39999152]
[1755784101465,4.01330864,185.31,185.28,0.72]
[1755784101613,17.2633356,185.34,185.23,26.0]
[1755784101924,0.66,185.31,185.23,26.72]
[1755784102313,8.28103294,185.31,185.23,26.72]
[1755784102521,16.41328287,185.3,185.25,12.39999152]
[1755784102742,7.62103294,185.29,185.25,12.39999152]
[1755784102928,7.62103294,185.29,185.26,12.39999152]
[1755784102929,3.60774159,185.29,185.26,12.39999152]
[1755784103251,16.00773311,185.3,185.21,0.72]
[1755784103423,7.62426404,185.29,185.21,0.72]
[1755784103615,3.60774159,185.29,185.27,12.39999152]
[1755784103930,12.39999152,185.31,185.27,12.39999152]
[1755784104129,4.01652011,185.3,185.28,12.39999152]
[1755784104314,3.60774159,185.32,185.29,12.39999152]
[1755784104514,3.66774159,185.34,185.31,12.39999152]
[1755784104736,3.66774159,185.34,185.33,12.39999152]
[1755784104737,0.06,185.34,185.33,12.39999152]
[1755784105521,0.72,185.34,185.25,26.72]
[1755784105850,12.39999152,185.33,185.25,0.72]